Cogmind - Beta 13 @@@ ROGUE MODE // 2024.06.30 @ 16:52:15 Player: N00Bk1llr Result: Destroyed by G-47 Trooper with Particle Gun Performance ------------- Evolutions (1) 500 Regions Visited (6) 1200 Robots Destroyed (88) 440 Value Destroyed (2292) 2292 Prototype IDs (4) 80 Alien Tech Used (0) 0 Bonus (-34) -34 TOTAL SCORE: 4478 Bonus ------- High Alert Combat Kills 264 Follower Combat Kills 35 Friendly Fire -333 Cogmind --------- Core Integrity 0/400 Matter 275/300 Energy 7/265 System Corruption 0% Temperature Cool (18) Movement Treading (320) Ox2 Location -8/Mines Parts ------- > --- POWER (1) -------- Improved Ion Engine > --- PROPULSION (2) --- Light Treads > --- UTILITY (3) ------ High-capacity Storage Unit Advanced Targeting Computer Shield Generator > --- WEAPON (3) ------- Mini Grenade Launcher > --- INVENTORY (20) --- Improved Ion Engine Improved Ion Engine Light Treads High-capacity Matter Pod (200) Seismic Detector Advanced Targeting Computer Advanced Targeting Computer Medium Armor Plating Medium Armor Plating Medium Armor Plating Shield Generator Hacking Suite Hacking Suite High-powered Tractor Beam Trap Extractor (0/4) Light Assault Rifle Improved Light Cannon Mini Grenade Launcher Peak State ------------ > --- POWER ------------ Improved Ion Engine > --- PROPULSION ------- Light Treads Light Treads > --- UTILITY ---------- High-capacity Storage Unit Advanced Targeting Computer Shield Generator > --- WEAPON ----------- Heavy Assault Rifle Heavy Assault Rifle Heavy Assault Rifle > --- INVENTORY -------- Improved Ion Engine Improved Ion Engine Light Treads Light Treads Light Treads Large Matter Pod Seismic Detector Advanced Targeting Computer Advanced Targeting Computer Shield Generator Shield Generator Hacking Suite Hacking Suite High-powered Tractor Beam Heavy Assault Rifle Light Cannon Improved Light Cannon Mini Grenade Launcher Mini Grenade Launcher [Rating: 19] Favorites ----------- Power Improved Ion Engine Engine Improved Ion Engine Power Core Light Nuclear Core Propulsion Light Treads Treads Light Treads Leg Aluminum Leg Utility High-capacity Storage Unit Device Seismic Detector Storage High-capacity Storage Unit Processor Advanced Targeting Computer Protection Light Armor Plating Weapon Heavy Assault Rifle Energy Gun Medium Laser Ballistic Gun Heavy Assault Rifle Ballistic Cannon Improved Light Cannon Launcher Mini Grenade Launcher Build | -11 -10 -10 -9 -9 -9 -8 ------- Run | Yrd Mat Min Mat Min Exi Min Slots Evolved 2 | . . . 2 . . . Power . | . . . . . . . Propulsion . | . . . . . . . Utility 1 | . . . 1 . . . Weapon 1 | . . . 1 . . . Parts Attached 91 | 3 8 3 61 13 3 . Power 7 | . 1 1 4 1 . . Engine 5 | . 1 . 3 1 . . Core 2 | . . 1 1 . . . Reactor . | . . . . . . . Propulsion 9 | 2 1 . 4 1 1 . Treads 9 | 2 1 . 4 1 1 . Leg . | . . . . . . . Wheel . | . . . . . . . Hover . | . . . . . . . Flight . | . . . . . . . Utility 38 | . 3 . 28 7 . . Device 25 | . 1 . 18 6 . . Storage 5 | . 1 . 4 . . . Processor 1 | . . . . 1 . . Hackware . | . . . . . . . Protection 7 | . 1 . 6 . . . Artifact . | . . . . . . . Weapon 37 | 1 3 2 25 4 2 . Energy Gun 7 | 1 1 . 5 . . . Energy Cannon . | . . . . . . . Ballistic Gun 12 | . 1 1 7 3 . . Ballistic Cannon 8 | . . . 6 1 1 . Launcher 10 | . 1 1 7 . 1 . Special Weapon . | . . . . . . . Impact Weapon . | . . . . . . . Slashing Weapon . | . . . . . . . Piercing Weapon . | . . . . . . . Special Melee Weapon . | . . . . . . . Unidentified Prototypes 3 | . . . 3 . . . Parts Lost 14 | . 1 . 3 5 2 3 Power . | . . . . . . . Propulsion 6 | . 1 . 2 1 1 1 Utility 2 | . . . . 2 . . Weapon 6 | . . . 1 2 1 2 Highest Loss Streak 3 | . 1 . 3 3 2 3 To Critical Strikes 4 | . . . . 3 1 . Average Slot Usage (%) 98 | . 97 100 97 99 99 . Engine 10 | . 14 1 8 11 11 . Core 1 | . . 12 2 . . . Treads 22 | . 26 28 21 22 22 . Device 10 | . 6 14 10 13 11 . Storage 11 | . 14 14 11 11 11 . Processor 4 | . . . . 8 11 . Protection 4 | . 7 . 9 . . . Energy Gun 4 | . 13 14 5 . . . Ballistic Gun 14 | . 14 13 10 19 11 . Ballistic Cannon 10 | . . . 16 12 10 . Launcher 1 | . . . . . 10 . Naked Turns . | . . . . . . . Heaviest Build 63 | 13 53 52 63 61 59 . Greatest Support 40 | 40 40 40 40 40 40 . Greatest Overweight (x) 2 | . 2 1 2 1 1 . Average Overweight (x) . | . . 1 1 1 1 . Largest Inventory Capacity 20 | 8 20 20 20 20 20 20 Average Capacity 18 | 8 14 20 20 20 20 20 Most Carried 20 | 6 20 20 20 20 20 18 Average Carried 17 | 2 12 20 19 17 18 18 Final Capacity 20 | 8 20 20 20 20 20 20 Final Carried 20 | 4 20 20 20 20 18 18 Class Distribution -------------------- 36% | Scavenger-Gunner 28% | Scavenger-Tank 23% | Mutant 7% | Tank Dominant Class ---------------- Mutant | -10/Materials Mutant | -10/Mines Scavenger-Tank | -9/Materials Scavenger-Gunner | -9/Mines Scavenger-Gunner | -9/Exiles Mutant | -8/Mines Resources | -11 -10 -10 -9 -9 -9 -8 ----------- Run | Yrd Mat Min Mat Min Exi Min Matter Collected 2702 | 236 336 49 1066 738 277 . Remotely 412 | . . . 412 . . . Salvage Created 2770 | 107 792 64 1282 519 6 . Parts 178 | 8 54 4 82 30 . . Haulers Intercepted 3 | . 1 . 2 . . . Recyclers Shooed 6 | . 3 . 1 2 . . Parts Field Recycled . | . . . . . . . Retrieved Matter . | . . . . . . . Parts Self-Destructed . | . . . . . . . Prevented . | . . . . . . . Kills | -11 -10 -10 -9 -9 -9 -8 ------- Run | Yrd Mat Min Mat Min Exi Min Combat Hostiles Destroyed 73 | . 14 2 39 13 5 . Guns 30 | . 10 1 8 11 . . Cannons 15 | . . . 13 2 . . AOE 27 | . 3 1 18 . 5 . Classes Destroyed 13 | 2 5 . 4 1 1 . Worker 2 | . 1 . 1 . . . Builder 5 | . . . 5 . . . Tunneler 3 | 1 1 . . 1 . . Hauler 3 | . 1 . 2 . . . Recycler 6 | 1 3 . 1 1 . . Operator 2 | . . . 2 . . . Watcher 3 | . 2 . 1 . . . Swarmer 11 | . 3 . 5 3 . . Grunt 46 | . 11 2 26 7 . . Brawler 1 | . . . 1 . . . Duelist 2 | . . . . 2 . . Sentry 7 | . . . 7 . . . Assembled 5 | . . . . . 5 . Best Kill Streak 15 | 2 4 2 15 3 5 . Combat Bots Only 10 | . 3 2 10 3 5 . Max Kills in Single Turn 4 | 1 3 1 4 2 3 . Gunslinging . | . . . . . . . Exploded 3 | . 3 1 3 . 3 . Melee . | . . . . . . . Uniques/NPCs Destroyed 1 | . . . . 1 . . 8R-AWN (-9/Mines) Combat | -11 -10 -10 -9 -9 -9 -8 -------- Run | Yrd Mat Min Mat Min Exi Min Hostile Shots Fired 298 | . 79 9 99 89 11 11 Missed 80 | . 29 2 28 15 4 2 Damage Taken 3091 | . 593 115 1021 977 126 259 Core 574 | . 143 30 78 228 43 52 Absorbed by Shields 365 | . . . 2 249 52 62 Redirected to Shielding 13 | . 13 . . . . . Regen/Repaired (Parts) 61 | . . . 61 . . . Core Remaining (%) 65 | 100 . 30 . . . . Volleys Fired 224 | 6 68 5 77 54 10 4 Largest 3 | 2 2 2 3 3 2 1 Hottest 130 | 70 70 70 130 97 53 30 Shots Fired 503 | 12 135 8 184 149 11 4 Gun 365 | 12 134 6 91 121 1 . Cannon 94 | . . . 66 28 . . Launcher 44 | . 1 2 27 . 10 4 Special . | . . . . . . . Kinetic 358 | 6 67 3 132 149 1 . Thermal 101 | 6 67 3 25 . . . Explosive 44 | . 1 2 27 . 10 4 Electromagnetic . | . . . . . . . Robot Hit Streak 26 | 2 15 2 18 26 5 9 Robot Miss Streak 5 | 4 4 2 5 4 . . Penetration Max . | . . . . . . . Secondary Targets . | . . . . . . . Shots Hit Robots 305 | 4 84 2 102 107 2 4 Core Hits 181 | 4 37 6 88 32 11 3 Critical Kills 3 | . 1 . 2 . . . Critical Parts Destroyed . | . . . . . . . Critical Strikes 10 | 2 5 . 2 1 . . Burn 6 | 2 4 . . . . . Destroy 4 | . 1 . 2 1 . . Melee Attacks . | . . . . . . . Impact . | . . . . . . . Slashing . | . . . . . . . Piercing . | . . . . . . . Sneak Attacks . | . . . . . . . Combat Hostiles . | . . . . . . . Follow-up Attacks . | . . . . . . . Damage Inflicted 7423 | 62 1034 142 3187 1921 460 617 Guns 3344 | 62 896 26 834 1526 . . Cannons 829 | . . . 591 238 . . Explosions 3154 | . 123 106 1734 114 460 617 Melee . | . . . . . . . Ramming 96 | . 15 10 28 43 . . Kinetic 3383 | 36 408 14 1161 1764 . . Thermal 904 | 26 488 12 264 114 . . Explosive 3040 | . 123 106 1734 . 460 617 Electromagnetic . | . . . . . . . Impact . | . . . . . . . Slashing . | . . . . . . . Piercing . | . . . . . . . Highest Corruption . | . . . . . . . Average Corruption . | . . . . . . . Corruption Purged . | . . . . . . . Corruption Blocked . | . . . . . . . Overload Shots . | . . . . . . . Overflow Damage 112 | . 8 . 57 . 22 25 Projectiles . | . . . . . . . Explosions 112 | . 8 . 57 . 22 25 Melee . | . . . . . . . Knockbacks 12 | . . 1 6 5 . . Impact 1 | . . 1 . . . . Kinetic 11 | . . . 6 5 . . Secondary . | . . . . . . . Self-Inflicted Damage 430 | . . 30 145 37 43 175 Shots 14 | . . 2 5 1 2 4 Rammed 25 | . 2 4 10 9 . . Targets Rammed 26 | . 3 4 10 9 . . Kicked . | . . . . . . . Crushed 1 | . 1 . . . . . Highest Temperature 284 | 100 284 48 249 139 . 10 Average Temperature 60 | 50 79 24 62 28 . 5 Received Heat Transfer 897 | . 306 48 414 58 20 51 Effects 5 | . 1 . 4 . . . Energy Bleed 2 | . 1 . 1 . . . Interference 3 | . . . 3 . . . Siege Activations . | . . . . . . . Robots Corrupted . | . . . . . . . Combat Hostiles . | . . . . . . . Parts Fried . | . . . . . . . Impact Corruptions . | . . . . . . . Robots Melted 1 | . 1 . . . . . Combat Hostiles 1 | . 1 . . . . . Parts Melted 4 | . 4 . . . . . Heat Transferred 2740 | 222 1739 37 592 150 . . Parts Sabotaged . | . . . . . . . Parts Stolen . | . . . . . . . Parts Stripped . | . . . . . . . Power Chain Reactions . | . . . . . . . Alert | -11 -10 -10 -9 -9 -9 -8 ------- Run | Yrd Mat Min Mat Min Exi Min Peak Influence 838 | 10 287 116 838 431 . 27 Initial 319 | . 6 58 44 319 . . Average 324 | 7 122 114 593 221 . 21 Maximum Alert Level 3 | . 1 . 3 2 . . Low Security (%) 48 | 100 86 100 9 55 . 100 Level 1 14 | . 13 . 2 28 . . Level 2 28 | . . . 62 16 . . Level 3 9 | . . . 25 . . . Level 4 . | . . . . . . . Level 5 . | . . . . . . . High Security . | . . . . . . . Max Security . | . . . . . . . Squads Dispatched 11 | . 4 . 5 2 . . Investigation 3 | . 2 . 1 . . . Extermination . | . . . . . . . Reinforcement 8 | . 2 . 4 2 . . Assault . | . . . . . . . Garrison . | . . . . . . . Intercept . | . . . . . . . Searches Triggered . | . . . . . . . Construction Impeded 3 | . . . 1 2 . . Haulers Reinforced . | . . . . . . . Active Scanning Responses . | . . . . . . . Cargo Convoy Interrupts . | . . . . . . . Stealth | -11 -10 -10 -9 -9 -9 -8 --------- Run | Yrd Mat Min Mat Min Exi Min Distress Signals 5 | . 2 . 3 . . . Communications Jammed . | . . . . . . . Distress Signals . | . . . . . . . Times Spotted 105 | . 21 2 54 18 7 3 Peak Tracking Total 8 | . 4 2 6 3 8 3 Tactical Retreats 6 | . 2 . 2 1 1 . Traps | -11 -10 -10 -9 -9 -9 -8 ------- Run | Yrd Mat Min Mat Min Exi Min Traps Triggered 3 | . 2 . 1 . . . Indirectly . | . . . . . . . Trap Hack Attempts . | . . . . . . . Triggered . | . . . . . . . Disarmed . | . . . . . . . Reprogrammed . | . . . . . . . Reused . | . . . . . . . Traps Extracted . | . . . . . . . Installed . | . . . . . . . Triggered . | . . . . . . . Machines | -11 -10 -10 -9 -9 -9 -8 ---------- Run | Yrd Mat Min Mat Min Exi Min Machines Disabled 8 | . 1 . 3 2 2 . Max in Single Turn 2 | . 1 . 1 2 1 . Machines Repaired . | . . . . . . . Machines Dismantled . | . . . . . . . Machines Sabotaged . | . . . . . . . Overloaded Fab Kills . | . . . . . . . Hacking | -11 -10 -10 -9 -9 -9 -8 --------- Run | Yrd Mat Min Mat Min Exi Min Machines Accessed 10 | . 4 . 6 . . . Terminals 8 | . 4 . 4 . . . Fabricators . | . . . . . . . Repair Stations 1 | . . . 1 . . . Recycling Units . | . . . . . . . Scanalyzers 1 | . . . 1 . . . Garrison Access . | . . . . . . . Total Hacks 23 | . 8 . 15 . . . Successful 12 | . 4 . 8 . . . Failed 11 | . 4 . 7 . . . Catastrophic 4 | . 2 . 2 . . . Database Lockouts . | . . . . . . . Manual 10 | . 6 . 4 . . . Terminals 19 | . 8 . 11 . . . Fabricators . | . . . . . . . Repair Stations 2 | . . . 2 . . . Recycling Units . | . . . . . . . Scanalyzers 2 | . . . 2 . . . Garrison Access . | . . . . . . . Terminal Hacks 6 | . 2 . 4 . . . Prototype ID Bank 1 | . . . 1 . . . Terminal Index 1 | . . . 1 . . . Locate Traps 1 | . 1 . . . . . Hauler Manifests 2 | . 1 . 1 . . . Registered Components 1 | . . . 1 . . . Fabricator Hacks . | . . . . . . . Repair Station Hacks 2 | . . . 2 . . . Scan Component 1 | . . . 1 . . . Repair 1 | . . . 1 . . . Recycling Unit Hacks . | . . . . . . . Scanalyzer 2 | . . . 2 . . . Insert Component 1 | . . . 1 . . . Analyze 1 | . . . 1 . . . Garrison Access Hacks . | . . . . . . . Unauthorized Hacks 2 | . 2 . . . . . Terminals 2 | . 2 . . . . . Assimilate 1 | . 1 . . . . . Botnet 1 | . 1 . . . . . Fabricators . | . . . . . . . Repair Stations . | . . . . . . . Recycling Units . | . . . . . . . Scanalyzers . | . . . . . . . Garrison Access . | . . . . . . . Data Cores Recovered . | . . . . . . . Used . | . . . . . . . Hacking Detections 9 | . 4 . 5 . . . Full Trace Events . | . . . . . . . Feedback Events . | . . . . . . . Feedback Blocked . | . . . . . . . Robot Schematics Acquired . | . . . . . . . Robots Built . | . . . . . . . Authchips . | . . . . . . . Time . | . . . . . . . Total Robot Build Rating . | . . . . . . . Part Schematics Acquired 1 | . . . 1 . . . Parts Built . | . . . . . . . Authchips . | . . . . . . . Time . | . . . . . . . Total Part Build Rating . | . . . . . . . Parts Repaired 1 | . . . 1 . . . Time 26 | . . . 26 . . . Parts Recycled . | . . . . . . . Recycled Matter . | . . . . . . . Retrieved Matter . | . . . . . . . Retrieved Components . | . . . . . . . Parts Scanalyzed 1 | . . . 1 . . . Part Schematics Acquired 1 | . . . 1 . . . Parts Damaged . | . . . . . . . Bothacking | -11 -10 -10 -9 -9 -9 -8 ------------ Run | Yrd Mat Min Mat Min Exi Min Used RIF Installer . | . . . . . . . Robots Hacked . | . . . . . . . Non-combat . | . . . . . . . Combat . | . . . . . . . Robot Hacks Applied . | . . . . . . . Relay Couplers Released . | . . . . . . . Fabnet Peak Effective % . | . . . . . . . Robots Rewired . | . . . . . . . Allies Hacked . | . . . . . . . Hacks Repelled . | . . . . . . . Allies | -11 -10 -10 -9 -9 -9 -8 -------- Run | Yrd Mat Min Mat Min Exi Min Total Allies 5 | . 1 . . 4 . . Largest Group 3 | . 1 1 1 3 2 1 Highest-Rated Group 47 | . 10 10 10 47 47 11 Highest-Rated Ally 31 | . 10 10 10 31 31 11 Total Orders . | . . . . . . . Ally Attacks 38 | . . . . 26 12 . Total Damage 307 | . . . . 216 91 . Kills 4 | . . . . 2 2 . Allies Corrupted . | . . . . . . . Allies Melted . | . . . . . . . Intel | -11 -10 -10 -9 -9 -9 -8 ------- Run | Yrd Mat Min Mat Min Exi Min Robot Analysis Total . | . . . . . . . Derelict Logs Recovered 3 | . . . . 3 . . Drone Launches . | . . . . . . . Drone Recoveries . | . . . . . . . Exploration | -11 -10 -10 -9 -9 -9 -8 ------------- Run | Yrd Mat Min Mat Min Exi Min Turns Passed 6125 | 60 1082 300 1897 2030 750 6 Spaces Moved 2176 | 23 402 114 612 723 302 . Core . | . . . . . . . Treads 2176 | 23 402 114 612 723 302 . Legs . | . . . . . . . Wheels . | . . . . . . . Hover . | . . . . . . . Flight . | . . . . . . . Fastest Speed 160 | 160 160 240 240 240 240 . Average Speed 233 | 160 204 240 242 240 240 . Slowest Speed 320 | 160 320 240 320 240 240 . Overloaded Moves . | . . . . . . . Propulsion Burnouts . | . . . . . . . Robots Hopped . | . . . . . . . Cave-ins Triggered . | . . . . . . . Exploration Rate (%) 45 | 3 69 39 58 98 49 4 Regions Visited 6 Branch Regions 4 Pre-discovered Areas 3 | . . . . 3 . . Known Exits Taken . | . . . . . . . Unknown Exits Taken 6 | 1 1 1 1 1 1 . Scrap Searched 1 | . . . . 1 . . Spaces Dug 5 | . . 5 . . . . Terrain Destroyed 261 | . 4 14 119 24 67 33 Melee . | . . . . . . . Projectile 3 | . . . 2 1 . . AOE 258 | . 4 14 117 23 67 33 Terrain Rammed . | . . . . . . . Walls Destroyed . | . . . . . . . Machines Disabled . | . . . . . . . Actions | -11 -10 -10 -9 -9 -9 -8 --------- Run | Yrd Mat Min Mat Min Exi Min Total 2763 | 37 531 127 863 884 317 4 Wait 154 | . 28 1 44 80 1 . Move 2170 | 22 401 113 611 722 301 . Hop . | . . . . . . . Pick Up 51 | 2 18 . 25 5 1 . Fast Attach 13 | . 2 . 11 . . . Attach 16 | 2 . . 7 5 2 . Detach 4 | . . . 4 . . . Swap 62 | 1 6 3 43 8 1 . Drop 43 | 4 5 1 31 1 1 . Fire 224 | 6 68 5 77 54 10 4 Melee . | . . . . . . . Ram . | . . . . . . . Kick . | . . . . . . . Crush 26 | . 3 4 10 9 . . Escape Stasis . | . . . . . . . Rewire . | . . . . . . . Trap . | . . . . . . . Miscellaneous . | . . . . . . . Route ------- -11/Scrapyard -10/Materials (discovered 3 exits: *Mat x2 / [*Min]) -10/Mines (discovered 2 exits: *Mat / [*Sub]) -9/Materials (discovered 4 exits: [*Mat x3] / [*Min]) -9/Mines (discovered 3 exits: [*Mat x2] / [*Exi]) -9/Exiles -8/Mines History --------- Turn | Location | Event 24 | -11/Scrapyard | Discovered new exit (range 3) 61 | -11/Scrapyard | Entered Materials 258 | -10/Materials | Discovered new exit (range 15) 304 | -10/Materials | Build established: Mutant 825 | -10/Materials | Core integrity fell below 50% 932 | -10/Materials | Discovered new exit (range 15) 1116 | -10/Materials | Discovered new exit (range 12) 1143 | -10/Materials | Entered Mines 1143 | -10/Mines | Accompanied by 1 ally 1409 | -10/Mines | Discovered new exit (range 10) 1416 | -10/Mines | Discovered new exit (range 12) 1443 | -10/Mines | Entered Materials 1443 | -9/Materials | Accompanied by 1 ally 1443 | -9/Materials | Evolved 2 slots: Utility x1, Weapon x1 1536 | -9/Materials | Lost 3 parts (2n1w) 1664 | -9/Materials | Destroyed 10 combat bots 1840 | -9/Materials | Repaired Lgt. Armor Plating? 1868 | -9/Materials | Discovered new exit (range 8) 2178 | -9/Materials | Build established: Scavenger-Tank 2195 | -9/Materials | Discovered new exit (range 16) 2602 | -9/Materials | Discovered new exit (range 13) 3066 | -9/Materials | Discovered new exit (range 7) 3340 | -9/Materials | Entered Mines 3519 | -9/Mines | Assembled infested the area 3530 | -9/Mines | Learned Materials stockpile data 3676 | -9/Mines | Met 8R-AWN 3693 | -9/Mines | Build established: Tank 3782 | -9/Mines | Attacked by 8R-AWN 3820 | -9/Mines | Core integrity fell below 50% 3868 | -9/Mines | Lost 3 parts (1u2w) 3872 | -9/Mines | Destroyed 8R-AWN 4109 | -9/Mines | Learned location of Storage (-8) 4207 | -9/Mines | Build established: Scavenger-Gunner 4459 | -9/Mines | Discovered new exit (range 15) 4459 | -9/Mines | Assisted by bots powering up and referring to "LRC-V3" 4975 | -9/Mines | Discovered new exit (range 10) 5027 | -9/Mines | Joined a pair of Derelicts in attacking an 0b10 outpost 5332 | -9/Mines | Escorted by a lone wolf Derelict 5355 | -9/Mines | Discovered new exit (range 5) 5370 | -9/Mines | Entered Exiles 5370 | -9/Exiles | Accompanied by 2 allies 5370 | -9/Exiles | Attacked by the Exiles 5464 | -9/Exiles | Discovered new exit (range 15) 5949 | -9/Exiles | Core integrity fell below 20% 6120 | -9/Exiles | Entered Mines 6120 | -8/Mines | Accompanied by 1 ally 6126 | -8/Mines | Destroyed by G-47 Trooper with Particle Gun Last Messages --------------- 05464_ EXIT=FOUND 05465_ The unstable cave ceiling collapses. 05514_ Rigged Rnf. Deuterium Engine explodes. 05526_ The unstable cave ceiling collapses. 05836_ SH-9LS(g) destroyed. 05909_ Extracted 137 matter. 05911_ Acquired Hcp. Matter Pod. 05912_ Dropped Lrg. Matter Pod. 05913_ Extracted 137 matter. LOCATION=UNKNOWN GOAL=ESCAPE 06120_ Destroyed Imp. Heat Sink. 06121_ The unstable cave ceiling collapses. 06121_ Hvy. Assault Rifle destroyed. 06124_ Lgt. Treads destroyed. 06124_ Destroyed Lgt. Treads. 06124_ Destroyed Lgt. Nuclear Core. 06126_ The unstable cave ceiling collapses. 06126_ Lgt. Cannon destroyed. 06126_ Destroyed Lgt. Cannon. Map ----- +----------------------------------------------------+ | ??????????????????????????????????????? | | ??????????????????????????????????????? | | ??????????????????????????????????????? | | ??????????????????????????????????????? | | ??????????????????????????????????????? | | ??????????????????????????????????????? | | ??????????????????????????????????????? | | ??????????????????????????????????????? | | ??????????????????????????????????????? | | ??????????????????????????????????????? | | ??????????????????????????????????????? | | ??????????????????????????????????????? | | ??????????????????????????????????????? | | ??????????????????????????????????????? | | ??????????????????????????????????????? | | ??????????????????????????????????????? | | ??????????????????????????????????????? | | ??????????????????????????????????????? | | ??????????????????????????????????????? | | ??????????????????????????????????????? | | ?????????????????#????????????????????? | | ?????????????????# ###########????????? | | ?????????????????# ##???????? | | ??????????????????? ##??????? | | ?????????????????????# #??????? | | ?????????????????????# @g #??????? | | ?????????????????????## b #??????? | | ??????????????????????# gg #??????? | | ??????????????????????# #??????? | | ?????????????????????? ##??????? | | ????????????????????? ##???????? | | ????????????????????### #### #????????? | | ??????????????????????# ???? #????????? | | ??????????????????????# ???? ????????? | | ??????????????????????# ?????#????????? | | ?????????????????????? ???????????????? | | ?????????????????????? ???????????????? | | ?????????????????????? ???????????????? | | ?????????????????????? ???????????????? | | ????????????????????? ????????????????? | | ??????????????????????????????????????? | | ??????????????????????????????????????? | | ??????????????????????????????????????? | | ??????????????????????????????????????? | | ??????????????????????????????????????? | | ??????????????????????????????????????? | | ??????????????????????????????????????? | | ??????????????????????????????????????? | | ??????????????????????????????????????? | | ??????????????????????????????????????? | +----------------------------------------------------+ Best States ------------- Heat Dissipation 28 Energy Generation 14 Energy Capacity 265 Matter Stores 328 Matter Capacity 450 Sight Range 16 Terrain Scan Density 10 Armor Coverage 150 Power Shielding 33 Evasion (%) 40 Targeting Accuracy 8 Recoil Reduction 2 Item Schematics ----------------- Hpw. Tractor Beam | -9/Materials | Scanalyzed Robot Schematics ------------------ None Fabricated ------------ Nothing Alien Tech Used ----------------- None Achievements -------------- None Challenges ------------ None Game ------ Seed TerrainElectronArmor Manual? 0 Play Time 00:27:25 Cumulative 70.5 hours Start 2024.06.30 @ 16:19:03 End 2024.06.30 @ 16:52:15 Sessions 1 Manual Loads 0 Difficulty Rogue Special Mode None Game No. 125 Rogue 103 Adventurer 22 Explorer 0 Win Type - Total 1 Types 1/0/0/0/0/0/0/0/0 Lore% 44 Gallery% 58 Achievement% 49 Wizard Run 0 Options --------- Layout 0 ASCII 0 Keyboard 1 Movement Numpad Keybinds 0 Fullscreen 2 Font 18/SmallcapsGlow Map View 76x50 Zoom Use 0% Tactical HUD 1 Map Filters NONE Filters NONE Steam 1 RUN: 63f0e18a-f89b-4e61-8edb-322580d74264